[Event "3rd Sharjah Challengers 2023"]
[Site "Sharjah"]
[Date "2023.05.24"]
[Round "8.6"]
[White "Rios, Cristhian Camilo"]
[Black "Liyanage, Ranindu Dilshan"]
[Result "0-1"]
[ECO "E04"]
[WhiteElo "2469"]
[BlackElo "2342"]
[Annotator "TA"]
[PlyCount "45"]
[EventDate "2023.05.16"]
[EventType "swiss"]
[EventCountry "UAE"]
[SourceTitle "playchess.com"]
[Source "ChessBase"]
[SourceQuality "1"]
[TimeControl "5400+30"]

{[%evp 11,45,17,32,15,15,15,15,15,15,15,14,10,13,9,4,0,7,6,11,7,65,52,53,8,16,20,18,6,10,0,22,0,18,-1617,-1592,-2220]} 1. d4 {[%emt 0:00:06]} d5 {[%emt 0:00:18]} 2. c4 {[%emt 0:00:32]} e6 {[%emt 0:00:11]} 3. Nf3 {[%emt 0:00:37]} Nf6 {[%emt 0:00:25]} 4. g3 {[%emt 0:00:20]} dxc4 {[%emt 0:01:01]} 5. Bg2 {[%emt 0:00:46]} Bb4+ {[%emt 0:00:20]} 6. Bd2 {[%emt 0:00:26]} a5 {[%emt 0:00:08]} 7. a3 {[%emt 0:00:28] E04: Open Catalan: 5 Nf3.} Bxd2+ {[%emt 0:01:21]} 8. Nbxd2 {[%emt 0:00:10]} b5 {[%emt 0:01:10]} 9. b3 $1 {[%emt 0:00:27] The position is equal.} cxb3 {[%emt 0:01:17]} 10. Qxb3 {[%emt 0:00:29]} c6 {[%emt 0:00:36]} 11. O-O {[%emt 0:00:43]} O-O {[%emt 0:03:43]} 12. Qb2 {[%emt 0:01:58]} Nbd7 {[%emt 0:02:42]} 13. Ne1 {[%emt 0:01:40] [#]} Ba6 $146 {[%emt 0:04:49]} ({Predecessor:} 13... Qb6 14. Nd3 Ba6 15. Rfc1 Rfc8 16. Nb3 b4 17. axb4 axb4 18. Nbc5 Nxc5 19. Nxc5 Nd5 {1-0 Bosiocic,M (2624)-Melkumyan,H (2633) Wch Rapid Riadh 2017 (2)}) 14. Bxc6 {[%emt 0:07:04]} Rb8 {[%emt 0:02:01]} 15. Bf3 {[%emt 0:01:44]} e5 {[%emt 0:09:02]} 16. Nd3 $14 {[%emt 0:04:35] White is more active.} exd4 {[%emt 0:04:16][%cal Ob5b4]} 17. Qxd4 {[%emt 0:01:52]} b4 {[%emt 0:01:02]} 18. axb4 {[%emt 0:03:51]} Bxd3 {[%emt 0:00:15]} 19. exd3 {[%emt 0:00:26]} axb4 {[%emt 0:08:32]} 20. Nb3 {[%emt 0:18:08]} Nb6 {[%emt 0:06:48]} 21. Ra6 {[%emt 0:05:30]} Qd7 {[%emt 0:51:03] [#]} 22. Qd6 $2 {[%mdl 8192]} Qxd6 $19 {[%emt 0:00:00]} 23. Nd4 {[%emt 0:50:08] Weighted Error Value: White=0.52/Black=0.09 (flawless)} 0-1

[Event "3rd Sharjah Challengers 2023"]
[Site "Sharjah"]
[Date "2023.05.24"]
[Round "8.7"]
[White "Badelka, Olga"]
[Black "Vandenbussche, Thibaut"]
[Result "0-1"]
[ECO "C41"]
[WhiteElo "2406"]
[BlackElo "2437"]
[Annotator "TA"]
[PlyCount "102"]
[EventDate "2023.05.16"]
[EventType "swiss"]
[EventCountry "UAE"]
[SourceTitle "playchess.com"]
[Source "ChessBase"]
[SourceQuality "1"]
[TimeControl "5400+30"]

{[%evp 12,102,22,27,34,14,38,12,22,22,28,25,22,19,21,21,22,17,0,6,9,0,0,-70,-67,-64,-73,-76,-69,-72,-77,-49,-50,-50,-72,-92,-105,-160,-164,-644,-644,-562,-118,-119,-110,-114,-103,-111,-111,-113,-94,-126,-119,-143,-117,-154,-153,-313,-318,-551,-547,-543,-527,-532,-517,-497,-359,-359,-359,-322,-264,-264,-266,-264,-253,-524,-524,-1999,-1810,-29976,-29977,-29982,-29983,-29983,-29984,-29986,-29985,-29985,-29986,-29986,-29986,-29986,-29987]} 1. e4 {[%emt 0:00:03]} d6 {[%emt 0:00:14]} 2. d4 {[%emt 0:00:11]} Nf6 {[%emt 0:00:02]} 3. Nc3 {[%emt 0:00:15]} e5 {[%emt 0:00:16]} 4. Nf3 {[%emt 0:00:30]} Nbd7 {[%emt 0:00:05]} 5. Bc4 {[%emt 0:00:52]} Be7 {[%emt 0:00:05]} 6. O-O {[%emt 0:00:43]} O-O {[%emt 0:00:04]} 7. a4 {[%emt 0:00:38]} exd4 {[%emt 0:00:37] C41: Philidor Defence.} 8. Qxd4 {[%emt 0:07:30]} Nb6 {[%emt 0:00:32]} 9. Ba2 {[%emt 0:07:48]} a5 {[%emt 0:00:13] The position is equal.} 10. h3 {[%emt 0:01:48]} Nfd7 {[%emt 0:00:41]} 11. Be3 {[%emt 0:03:13]} Bf6 {[%emt 0:00:33]} 12. Qd2 {[%emt 0:00:19]} Bxc3 {[%emt 0:01:11]} 13. Qxc3 {[%emt 0:01:08]} Nxa4 {[%emt 0:00:16] [#]} 14. Bxf7+ $1 {[%emt 0:09:59][%mdl 64] Discovered Attack} Rxf7 {[%emt 0:00:18]} 15. Rxa4 {[%emt 0:00:03] [#]} h6 $146 {[%emt 0:08:37] Prevents Ng5} ({Predecessor:} 15... Rxf3 16. gxf3 Ne5 17. Bf4 Bxh3 18. Rfa1 Ng6 19. Bg3 b6 20. b4 Bd7 21. R4a3 a4 {0-1 Duzhakov,I (2404)-Sitnikov,A (2410) St Petersburg  North-West Cup-A 2018 (7)}) 16. Rd1 {[%emt 0:26:33]} Qe8 {[%emt 0:09:45][%cal Of7f3]} 17. Rad4 {[%emt 0:06:00] [#]} (17. Qxc7 $2 Ne5 $19) (17. Rc4 $11 c5 18. Rxd6) 17... Rxf3 $1 $15 {[%emt 0:10:50]} 18. gxf3 {[%emt 0:00:03]} Ne5 $1 {[%emt 0:00:07][%csl LRf3,LRh3]} 19. Bf4 {[%emt 0:08:36] Threatens to win with Bxe5.} (19. Qxc7 $2 Bxh3 20. Rxd6 (20. Qxd6 $2 Qh5 $19) 20... Qh5 $19) 19... Bxh3 {[%emt 0:02:21]} 20. Rd5 {[%emt 0:01:18][%cal Rf4e5]} (20. Qxc7 $2 Qh5 21. Bxe5 dxe5 $19) 20... Qg6+ $1 {[%emt 0:25:19]} 21. Bg3 {[%emt 0:00:05]} Rf8 $1 {[%emt 0:06:08]} 22. Rxe5 {[%emt 0:00:44]} (22. Rxa5 $2 Rxf3 23. Qe1 Rxg3+ 24. fxg3 Nf3+ 25. Kf2 Nxe1 $19) (22. Qxc7 Nxf3+ 23. Kh1 Qxe4 24. R5d3 Ne5+ 25. f3 Rxf3) 22... dxe5 {[%emt 0:00:05]} 23. Qxe5 {[%emt 0:03:41]} Rxf3 {[%emt 0:01:17] Hoping for ...Qg4.} 24. Rd8+ {[%emt 0:02:33]} ({White should play} 24. Rd3 Qg4 25. Qxc7) 24... Kh7 $17 {[%emt 0:00:08] ...Qa6 is the strong threat.} 25. Kh2 $2 {[%emt 0:00:58] [#]} (25. Qxc7 Qxe4 26. Qe5 Qxc2 27. Qd5) 25... Qg4 $1 $19 {[%emt 0:03:31][%cal Of3f2]} 26. Kg1 {[%emt 0:04:55]} Rf7 $2 {[%emt 0:10:20]} (26... a4 $19 {has better winning chances.} 27. Rd5 (27. Qe8 {leads to mate.} Rxg3+ 28. Kh2 Rg2+ 29. Kh1 Rg1+ 30. Kh2 Qg2#) 27... a3 28. bxa3 Rf6) 27. Qd5 $17 {[%emt 0:02:59]} (27. Qe8 {gets mated.} Qf3 28. Qh8+ Kg6) 27... Qe2 {[%emt 0:04:25] ( -> ...Qf1+)} 28. Kh2 {[%emt 0:01:07] [#]} Qf1 $1 {[%emt 0:09:08][%csl Gh3][%cal Rf1g2]} 29. e5 {[%emt 0:00:07][%cal Od5b7]} c6 $40 {[%emt 0:04:12][%mdl 128] White is in trouble. Some like it hot} 30. Qd3+ {[%emt 0:02:54]} Qxd3 {[%emt 0:00:21]} 31. Rxd3 {[%emt 0:00:21][%mdl 4096] Endgame KRB-KRB} Bf5 {[%emt 0:00:22]} 32. Ra3 {[%emt 0:01:31]} b6 {[%emt 0:00:45]} 33. c3 {[%emt 0:02:10]} Be6 {[%emt 0:00:46] Black is more active.} 34. f4 $2 {[%emt 0:02:04] White does not recover from this.} (34. Ra1 $17 {is a better defense.}) 34... Rd7 $19 {[%emt 0:00:27]} 35. b4 $2 {[%emt 0:01:12]} (35. Kg1) 35... Rd2+ {[%emt 0:00:08]} 36. Kg1 {[%emt 0:00:15]} Rd3 {[%emt 0:02:34]} 37. bxa5 {[%emt 0:01:13][%cal Oa5a6]} Rxg3+ {[%emt 0:00:08] KRB-KR} 38. Kf2 {[%emt 0:00:02]} Rg4 {[%emt 0:00:07]} 39. axb6 {[%emt 0:00:25] And now b7 would win.} Rxf4+ {[%emt 0:00:08]} 40. Ke3 {[%emt 0:00:03]} Rf8 {[%emt 0:00:44]} 41. Kd4 {[%emt 0:00:23]} h5 {[%emt 0:02:01][%cal Bh6h5,Bh5h4,Bh4h3,Bh3h2][%mdl 32] ...h4 would be deadly.} 42. Kc5 {[%emt 0:00:58][%cal Oc5d6]} h4 {[%emt 0:00:47]} 43. b7 $2 {[%emt 0:03:50] [#]} (43. Kd6 Bd5 44. b7) 43... Rb8 $1 {[%emt 0:00:21]} 44. Kxc6 {[%emt 0:00:00]} h3 {[%emt 0:00:51] White must now prevent ...g5.} 45. c4 {[%emt 0:00:00]} g5 {[%emt 0:00:34][%cal Bg7g5,Bg5g4,Bg4g3][%mdl 32] Black mates.} ({Stronger than} 45... Bxc4 46. Rxh3+ Kg6 47. Kc7 $11) 46. c5 {[%emt 0:00:00]} h2 {[%emt 0:01:06]} 47. Ra1 {[%emt 0:00:01]} g4 {[%emt 0:00:00]} 48. Kd6 {[%emt 0:01:55] [#]} Rxb7 $1 {[%emt 0:00:00]} 49. c6 {[%emt 0:00:03]} (49. Kxe6 g3) 49... Rg7 {[%emt 0:00:28]} 50. Rh1 {[%emt 0:00:37] [#]} g3 $1 {[%emt 0:00:09]} 51. Kxe6 {[%emt 0:00:03]} (51. c7 Kg6) 51... Kg6 {[%emt 0:00:29] Beautiful play by Vandenbussche!   Weighted Error Value: White=0.70/Black=0.16 (very precise)} 0-1

[Event "3rd Sharjah Challengers 2023"]
[Site "Sharjah"]
[Date "2023.05.24"]
[Round "8.8"]
[White "Saydaliev, Saidakbar"]
[Black "Lim, Zhuo Ren"]
[Result "1-0"]
[ECO "A17"]
[WhiteElo "2434"]
[BlackElo "2294"]
[Annotator "TA"]
[PlyCount "43"]
[EventDate "2023.05.16"]
[EventType "swiss"]
[EventCountry "UAE"]
[SourceTitle "playchess.com"]
[Source "ChessBase"]
[SourceQuality "1"]
[TimeControl "5400+30"]

{[%evp 9,43,15,17,11,24,23,28,6,45,29,27,27,39,33,84,43,37,37,19,26,25,40,55,43,49,47,75,45,185,186,198,213,1090,1063,29980,29981]} 1. c4 {[%emt 0:01:53]} Nf6 {[%emt 0:00:26]} 2. Nf3 {[%emt 0:00:45]} e6 {[%emt 0:00:34]} 3. Nc3 {[%emt 0:00:41]} d5 {[%emt 0:00:40]} 4. e3 {[%emt 0:00:08]} c5 {[%emt 0:07:06]} 5. cxd5 {[%emt 0:00:36]} exd5 {[%emt 0:00:19]} 6. Bb5+ {[%emt 0:00:09] A17: English Opening: 1...Nf6 with ...Bb4.} Nc6 {[%emt 0:01:06]} 7. Ne5 {[%emt 0:00:52]} Bd7 {[%emt 0:01:03]} 8. Bxc6 {[%emt 0:02:49] [#] White has an edge.} Bxc6 $146 {[%emt 0:01:52]} ({Predecessor:} 8... bxc6 9. Nxd7 Nxd7 10. O-O Bd6 11. b3 O-O 12. Qc2 Re8 13. h3 Re6 14. Ba3 Qe7 {½-½ Gatterer,F (2359)-Khairullin,R (2331) WS MN/179 email 2018}) 9. Nxc6 {[%emt 0:04:09]} bxc6 {[%emt 0:00:08]} 10. b3 {[%emt 0:02:31]} Bd6 {[%emt 0:04:29]} 11. O-O {[%emt 0:08:07]} h5 {[%emt 0:00:31]} (11... O-O $14) 12. f4 {[%emt 0:08:14]} h4 {[%emt 0:08:51]} 13. Bb2 {[%emt 0:10:00]} h3 {[%emt 0:07:49]} 14. g3 {[%emt 0:00:47][%cal Bg2g3,Bg3g4,Bg4g5][%mdl 32]} O-O {[%emt 0:00:37]} 15. Rc1 {[%emt 0:04:38]} Qe7 {[%emt 0:02:45]} 16. Qf3 {[%emt 0:02:35]} Rab8 {[%emt 0:01:57]} 17. g4 {[%emt 0:02:19]} c4 {[%emt 0:03:21]} 18. g5 {[%emt 0:02:19]} Ne4 {[%emt 0:11:26] This move loses the game for Black.} (18... Nh7 $1 $14) 19. Nxe4 $18 {[%emt 0:00:44]} (19. Qxh3 Nxd2 20. Rf2 Bc5 $11) 19... dxe4 {[%emt 0:00:04]} 20. Qh5 {[%emt 0:00:36]} (20. Qxh3 cxb3 21. axb3 (21. Rxc6 bxa2 22. Rc2 Rb3 $16) 21... Rxb3) 20... Ba3 $2 {[%emt 0:09:10] [#]} (20... cxb3 21. f5 (21. Rxc6 bxa2 22. Bd4 Rb1 $17) 21... Qd7 22. g6 fxg6 23. fxg6 $18) (20... Rb5 21. Rxc4 (21. bxc4 $2 {too greedy.} Rxb2 22. Rf2 Bb4 $19) 21... Qe6) 21. f5 $1 {[%emt 0:03:42][%cal Og5g6] g6! is the strong threat.} Rb5 {[%emt 0:08:48] [#]} (21... Bxb2 22. g6) 22. Bxg7 $1 {[%emt 0:01:18][%mdl 576] Remove Defender, Decoy.   Weighted Error Value: White=0.06 (flawless) /Black=0.65} 1-0

[Event "3rd Sharjah Challengers 2023"]
[Site "Sharjah"]
[Date "2023.05.24"]
[Round "8.9"]
[White "Bai, Adelard"]
[Black "Mkrtchyan, Mariam"]
[Result "1-0"]
[ECO "E08"]
[WhiteElo "2409"]
[BlackElo "2360"]
[Annotator "TA"]
[PlyCount "109"]
[EventDate "2023.05.16"]
[EventType "swiss"]
[EventCountry "UAE"]
[SourceTitle "playchess.com"]
[Source "ChessBase"]
[SourceQuality "1"]
[TimeControl "5400+30"]

{[%evp 17,109,16,23,0,0,0,11,1,1,6,22,8,9,8,11,11,45,40,42,29,40,22,56,40,36,40,93,101,117,116,114,124,165,164,160,167,152,86,143,58,134,116,204,65,150,107,101,43,54,29,31,29,53,16,52,75,71,66,69,62,945,945,844,872,789,36,20,27,22,43,37,54,46,48,871,854,886,886,886,886,886,872,871,871,871,871,868,864,833,833,5191,5191,1658,1553]} 1. d4 {[%emt 0:00:05]} Nf6 {[%emt 0:00:06]} 2. c4 {[%emt 0:00:10]} e6 {[%emt 0:00:03]} 3. Nf3 {[%emt 0:00:17]} d5 {[%emt 0:00:04]} 4. g3 {[%emt 0:00:07]} Bb4+ {[%emt 0:00:12]} 5. Bd2 {[%emt 0:00:07]} Be7 {[%emt 0:00:04]} 6. Bg2 {[%emt 0:00:26]} O-O {[%emt 0:00:31]} 7. O-O {[%emt 0:00:30]} c6 {[%emt 0:00:01]} 8. Qc2 {[%emt 0:00:08]} Nbd7 {[%emt 0:00:19]} 9. Bf4 {[%emt 0:00:26]} a5 {[%emt 0:00:10]} 10. Nbd2 {[%emt 0:03:19] E08: Closed Catalan: Main Line: 7 Qc2.} Nh5 {[%emt 0:00:22]} 11. Be3 {[%emt 0:00:44]} b6 {[%emt 0:00:40]} 12. cxd5 {[%emt 0:03:29] The position is equal.} cxd5 {[%emt 0:00:33]} 13. Ne5 {[%emt 0:00:44]} Bb7 {[%emt 0:03:05]} 14. Nc6 {[%emt 0:01:47]} Qe8 {[%emt 0:00:32]} 15. Nxe7+ {[%emt 0:02:27]} Qxe7 {[%emt 0:00:05]} 16. Rfc1 {[%emt 0:00:43] [#]} f5 $146 {[%emt 0:09:40]} ({Predecessor:} 16... Rfc8 17. Qd1 Nhf6 18. Rxc8+ Rxc8 19. Rc1 Qd8 20. Bf4 Ba6 21. Bf1 h6 22. h4 Nf8 {½-½ Deac,B (2679)-Bluebaum,M (2642) Titled Tuesday intern op 15 Mar Late blitz 2022 (7)}) 17. Nf3 {[%emt 0:02:29]} Rfc8 {[%emt 0:06:45] Against Qc7} 18. Qd1 {[%emt 0:07:42]} Nhf6 {[%emt 0:03:58]} 19. Bf4 {[%emt 0:04:03]} Ne8 {[%emt 0:09:55]} 20. Qd3 {[%emt 0:07:05]} h6 {[%emt 0:06:51]} 21. Ne5 {[%emt 0:05:04]} Nxe5 {[%emt 0:06:41]} (21... Nef6 $14) 22. dxe5 $16 {[%emt 0:02:40]} (22. Bxe5 Nf6 $14) 22... Rxc1+ {[%emt 0:08:35]} 23. Rxc1 {[%emt 0:00:07]} (23. Bxc1 Ba6 24. Qd4 Qc5 $14) 23... Ba6 {[%emt 0:00:43] Black is weak on the dark squares} 24. Qd4 {[%emt 0:09:32]} Qb7 {[%emt 0:00:45] Against Rc6} 25. Bf3 {[%emt 0:04:02]} Rb8 {[%emt 0:05:53]} 26. h4 {[%emt 0:03:52] White is more active.} Bb5 {[%emt 0:07:29]} 27. g4 {[%emt 0:02:41]} (27. a4 $142 Bd7 28. g4 fxg4 29. Bxg4) 27... Qf7 {[%emt 0:00:06]} (27... fxg4 $142 28. Bxg4 Qf7) 28. Kh2 {[%emt 0:03:37]} (28. gxf5 $1 $16 Qxf5 29. b3) 28... Kh8 {[%emt 0:04:26]} ({Black should play} 28... fxg4 $14 29. Bxg4 Kh8) 29. Be3 {[%emt 0:04:09]} Bd7 {[%emt 0:04:02]} (29... fxg4 $16 30. Qxg4 (30. Bxg4 Qe7 $16) 30... Bd7) 30. Rg1 {[%emt 0:06:30]} (30. Qf4 $1 $18) 30... Nc7 {[%emt 0:01:44]} (30... fxg4 $1 $14 31. Rxg4 (31. Qxg4 Nc7 $14) 31... Nc7) 31. g5 {[%emt 0:01:09]} hxg5 {[%emt 0:06:00]} 32. Rxg5 {[%emt 0:00:14]} ({Don't take} 32. Bxg5 Na6) ({White should try} 32. hxg5 $16 {White threatens Qh4+ and mate.} g6 33. Rc1) 32... Be8 $14 {[%emt 0:00:47]} 33. Qf4 {[%emt 0:02:34]} Na6 {[%emt 0:02:00]} 34. Bh5 {[%emt 0:01:29]} Qe7 {[%emt 0:01:44]} 35. Qf3 {[%emt 0:03:33]} Kh7 {[%emt 0:03:33]} (35... Nc5 {simplifies} 36. Bxe8 Qxe8 37. Rg1 Kh7) 36. Qg3 {[%emt 0:02:59]} Rb7 {[%emt 0:04:45] [#]} 37. Bxb6 $1 {[%emt 0:03:37]} a4 {[%emt 0:01:31]} 38. a3 {[%emt 0:01:29][%cal Oe2e3]} g6 $2 {[%emt 0:03:46][%mdl 8192]} ({Weaker is} 38... Rxb6 39. Bxe8 Rb8 40. Bg6+ (40. Bxa4 Nc5 $11) 40... Kg8 41. Qf3 $16) (38... Bxh5 $14 39. Rxh5+ Kg8) 39. Bxg6+ $18 {[%emt 0:02:28]} Bxg6 {[%emt 0:00:04]} 40. Rxg6 {[%emt 0:00:03]} Rxb6 {[%emt 0:00:05] [#]} 41. Rg5 $2 {[%emt 0:00:37]} (41. h5 $1 $18 {[%cal Og6h6] Threatening mate with Rh6+!} Qf8 42. h6) 41... Qf7 $14 {[%emt 0:00:13] Strongly threatening ...Nc5.} (41... Rxb2 $2 42. Rh5#) 42. Qf3 {[%emt 0:00:13][%mdl 1024] Rh5+ is the strong threat. White has compensation.} Rb8 $1 {[%emt 0:02:09]} (42... Rxb2 $2 43. Rh5+ Kg8 44. Qg3+ Qg7 45. Rg5 $18) 43. Rh5+ $40 {[%emt 0:00:46][%cal Bg5h5,Bh5h6,Bh6g6][%mdl 160] White mounts an attack.} Kg7 $1 {[%emt 0:00:15]} (43... Kg8 $2 44. Rh6 $18) 44. Qg3+ {[%emt 0:02:25]} Kf8 {[%emt 0:00:01]} 45. Rh6 {[%emt 0:00:15]} Ke7 {[%emt 0:00:58][%mdl 8192] [#]} (45... Rxb2 $2 46. Rf6 Rb7 47. Qg6 $18) (45... Qg8 $14) 46. Rg6 $1 $18 {[%emt 0:00:13] Rg7 would be deadly. White is clearly winning.} Rf8 {[%emt 0:00:48]} 47. Rg7 {[%emt 0:00:09]} Nc5 {[%emt 0:00:08]} 48. Qg5+ {[%emt 0:00:33]} Ke8 {[%emt 0:00:12]} 49. Rxf7 {[%emt 0:00:05]} Rxf7 {[%emt 0:00:00][%mdl 4096] Endgame KQ-KRN} 50. Qg6 {[%emt 0:00:21]} Ke7 {[%emt 0:00:25]} 51. h5 {[%emt 0:00:09][%cal Bh4h5,Bh5h6,Bh6h7][%mdl 32]} Nd7 {[%emt 0:00:00]} 52. Qg5+ {[%emt 0:00:14]} Ke8 {[%emt 0:00:07]} 53. h6 {[%emt 0:00:29]} Nxe5 {[%emt 0:00:44]} 54. Qg8+ {[%emt 0:00:11]} Ke7 {[%emt 0:00:03]} 55. h7 {[%emt 0:00:08] Weighted Error Value: White=0.28 (precise) /Black=0.18 (very precise)} 1-0

[Event "3rd Sharjah Challengers 2023"]
[Site "Sharjah"]
[Date "2023.05.25"]
[Round "9.1"]
[White "Ohanyan, Emin"]
[Black "Fawzy, Adham"]
[Result "1/2-1/2"]
[WhiteElo "2444"]
[BlackElo "2495"]
[Annotator "TA"]
[PlyCount "35"]
[EventDate "2023.05.16"]
[EventType "swiss"]
[EventCountry "UAE"]
[SourceTitle "playchess.com"]
[Source "ChessBase"]
[SourceQuality "1"]
[TimeControl "5400+30"]

{[%evp 16,17,49,10]} 1. d4 {[%emt 1:31:00]} Nf6 {[%emt 1:31:00]} 2. c4 {[%emt 0:00:30]} g6 {[%emt 0:00:30]} 3. Nc3 {[%emt 0:00:30]} d5 {[%emt 0:00:30]} 4. cxd5 {[%emt 0:00:30]} Nxd5 {[%emt 0:00:30]} 5. e4 {[%emt 0:00:30]} Nxc3 {[%emt 0:00:30]} 6. bxc3 {[%emt 0:00:30]} Bg7 {[%emt 0:00:30]} 7. Be3 {[%emt 0:00:30]} c5 {[%emt 0:00:30]} 8. Nf3 {[%emt 0:00:30]} Bg4 {[%emt 0:00:30]} 9. Qa4+ {[%emt 0:00:30] [#]} ({Worse is} 9. dxc5 Bxc3+ 10. Bd2 Bxa1 11. Qxa1 f6 $17) {Predecessor:} 9... Nd7 $146 {D85: Exchange Grünfeld: Unusual White 7th moves and lines with 7 Nf3.} 10. Be2 O-O 11. Rd1 cxd4 12. cxd4 Nf6 13. d5 b5 14. Qc2 Rc8 15. Qb1 Qa5+ 16. Bd2 Qa4 17. h3 Bxf3 18. gxf3 {0-1 Yilmaz,M (2634)-Paravyan,D (2620) Chess.com Rapid Wk19 Swiss 2022 (1)} 1/2-1/2

[Event "3rd Sharjah Challengers 2023"]
[Site "Sharjah"]
[Date "2023.05.25"]
[Round "9.2"]
[White "Burmakin, Vladimir"]
[Black "Hesham, Abdelrahman"]
[Result "1-0"]
[ECO "A46"]
[WhiteElo "2496"]
[BlackElo "2409"]
[Annotator "TA"]
[PlyCount "77"]
[EventDate "2023.05.16"]
[EventType "swiss"]
[EventCountry "UAE"]
[SourceTitle "playchess.com"]
[Source "ChessBase"]
[SourceQuality "1"]
[TimeControl "5400+30"]

{[%evp 9,77,8,12,4,22,16,64,10,73,67,79,9,30,0,12,14,11,0,-7,-21,40,48,50,81,82,56,135,117,135,115,130,101,141,147,145,142,139,131,166,114,113,111,122,129,400,400,629,599,602,599,693,684,1230,1187,1171,1147,1641,1107,1290,603,603,603,598,594,808,799,1548,1693,1622,1463]} 1. d4 {[%emt 0:00:03]} Nf6 {[%emt 0:00:34]} 2. Nf3 {[%emt 0:00:18]} c5 {[%emt 0:00:06]} 3. e3 {[%emt 0:03:52]} e6 {[%emt 0:07:01]} 4. Be2 {[%emt 0:01:41]} b6 {[%emt 0:01:50]} 5. O-O {[%emt 0:00:16]} Bb7 {[%emt 0:00:05]} 6. c4 {[%emt 0:01:02] A46: 1 d4 Nf6 2 Nf3 e6: Torre, London and Colle Systems.} cxd4 {[%emt 0:08:49]} 7. exd4 {[%emt 0:01:10]} Nc6 {[%emt 0:00:13]} (7... Be7 $11) 8. Nc3 {[%emt 0:20:09] [#]} (8. d5 $1 $14 Na5 9. Bd3) 8... Ne7 $146 {[%emt 0:30:23] [#]} (8... Bb4 $11 {remains equal.}) ({Predecessor:} 8... Bd6 9. a3 Rc8 10. b4 Bb8 11. Re1 Qc7 12. Nb5 Qd8 13. c5 a6 14. Nd6+ Bxd6 15. cxd6 {0-1 Cornelis,L-Janssens,S Antwerp League-ch op 1999}) 9. d5 $1 $16 {[%emt 0:07:15]} Ng6 {[%emt 0:03:06]} (9... Qb8 10. Nb5) 10. dxe6 {[%emt 0:18:07]} (10. d6 $16) 10... fxe6 $11 {[%emt 0:05:12]} 11. Ng5 {[%emt 0:00:11]} Bc5 {[%emt 0:11:59]} 12. Bd3 {[%emt 0:03:46]} O-O {[%emt 0:00:21]} 13. Nce4 {[%emt 0:02:46]} (13. Qc2 {looks sharper.} Ng4 14. Bxg6 hxg6 15. Qxg6 Rxf2 16. Rxf2 Bxf2+ 17. Kh1) 13... Nxe4 {[%emt 0:03:06]} 14. Nxe4 {[%emt 0:07:49]} Nf4 {[%emt 0:01:40]} (14... Be7 $11) 15. Bxf4 $1 $14 {[%emt 0:01:01]} Rxf4 {[%emt 0:01:39]} 16. Nxc5 {[%emt 0:00:25]} bxc5 {[%emt 0:00:37]} 17. Qh5 {[%emt 0:01:28][%csl LRc5,LRh7]} Rh4 {[%emt 0:14:37]} (17... Qh4 $14 18. Bxh7+ Kf8 19. Qxh4 (19. Qxc5+ Kf7 $11) 19... Rxh4) 18. Qxc5 $16 {[%emt 0:00:59] White is more active.} Qf6 {[%emt 0:00:07][%cal Ob7g2] aiming for ...Bxg2!} 19. Qe3 {[%emt 0:01:05]} Rf8 {[%emt 0:00:06]} (19... Qxb2 $2 20. Rab1 Qd4 21. Rxb7 $18) 20. b3 {[%emt 0:04:12]} Rh5 {[%emt 0:05:35]} 21. Rae1 {[%emt 0:02:58]} Qh4 {[%emt 0:02:30][%csl Gh5][%cal Rh4h2]} 22. Qg3 {[%emt 0:00:19]} Qd4 {[%emt 0:00:36]} 23. Rd1 {[%emt 0:06:44]} Qf6 {[%emt 0:00:38] Hoping for ...Rg5.} 24. f3 {[%emt 0:01:24]} (24. f4 $18) 24... Rg5 {[%emt 0:00:48] [#]} 25. Qh3 {[%emt 0:00:02]} h6 {[%emt 0:00:37] [#]} 26. Be4 $1 {[%emt 0:01:01][%mdl 64] Discovered Attack} d5 $2 {[%emt 0:00:12][%mdl 8192] This costs Black the game.} (26... Qd8 $16 {was called for.} 27. f4 (27. Bxb7 Qb6+ 28. Kh1 Qxb7 $16) 27... Qb6+ 28. Kh1 Rc5) 27. f4 $18 {[%emt 0:00:43]} Rh5 {[%emt 0:01:01]} (27... Rg6 $142) 28. Qxh5 {[%emt 0:00:29] White is clearly winning.} dxe4 {[%emt 0:00:02]} 29. Qe5 {[%emt 0:01:59]} Qg6 {[%emt 0:00:01]} 30. Rd6 {[%emt 0:00:56]} Rf6 {[%emt 0:00:21][%cal Oe4e3]} 31. Rd8+ {[%emt 0:00:52]} Kh7 {[%emt 0:00:02]} 32. Qb8 {[%emt 0:00:17][%csl Gb8,LRa7,LRb7][%cal Rd8h8]} Qf7 {[%emt 0:00:13]} 33. Rh8+ {[%emt 0:00:06]} Kg6 {[%emt 0:00:03]} 34. Qe8 {[%emt 0:00:17]} (34. g4 $142) 34... e3 {[%emt 0:00:29]} 35. Qxf7+ {[%emt 0:02:04]} Rxf7 {[%emt 0:00:04]} 36. Re1 {[%emt 0:00:07]} e5 {[%emt 0:00:22]} 37. fxe5 {[%emt 0:00:40]} Rf2 {[%emt 0:00:05]} 38. Rxe3 {[%emt 0:00:23]} Rxg2+ {[%emt 0:00:04]} 39. Kf1 {[%emt 0:00:12] Weighted Error Value: White=0.14 (very precise) /Black=0.52} 1-0